[Event "8th Montevideo Open 2025"]
[Site "Montevideo"]
[Date "2025.02.06"]
[Round "6.13"]
[White "Meza, Anahi"]
[Black "Balseca Moreno, Diego"]
[Result "1-0"]
[Annotator "TA"]
[ECO "E91"]
[WhiteElo "2038"]
[BlackElo "2269"]
[PlyCount "63"]
[EventDate "2025.02.01"]
[EventType "swiss"]
[EventCountry "URU"]
[SourceTitle "playchess.com"]
[Source "ChessBase"]
[SourceQuality "1"]
[TimeControl "5400+30"]

{[%evp 19,63,32,51,43,49,51,48,52,60,45,79,36,66,59,59,58,55,57,85,55,128,88,86,70,66,22,22,19,133,108,510,518,695,690,687,706,672,668,977,972,959,870,958,937,29998,29999]} 1. d4 {[%emt 1:31:00]} Nf6 {[%emt 0:11:10]} 2. c4 {[%emt 0:00:00]} g6 {[%emt 0:00:11]} 3. Nc3 {[%emt 0:00:00]} Bg7 {[%emt 0:00:05]} 4. e4 {[%emt 0:00:00]} d6 {[%emt 0:00:04]} 5. Be2 {[%emt 0:02:00]} O-O {[%emt 0:00:12]} 6. Nf3 {[%emt 0:00:30][%cal Bg1f3,Bf3e1,Be1d3][%mdl 32]} Bg4 {[%emt 1:21:48]} 7. O-O {[%emt 0:00:00]} Nfd7 {[%emt 0:00:00]} 8. Be3 {[%emt 0:01:00]} Nc6 {[%emt 0:00:00]} 9. Ne1 {[%emt 0:00:00]} Bxe2 {[%emt 0:00:00]} 10. Nxe2 {[%emt 0:00:00]} e5 {[%emt 0:00:00]} 11. d5 {E91: King's Indian: Classical: 6 Be2, unusual replies including 6...c5 and 6...Bg4.} Ne7 {[%emt 0:02:30]} 12. Nc3 {[%emt 0:02:00]} f5 {[%emt 0:00:30] White has space advantage and is better} 13. f3 {[%emt 0:00:30] White is slightly better.} Kh8 {[%emt 0:00:30]} 14. Nd3 {[%emt 0:00:30]} Ng8 {[%emt 0:00:30]} 15. c5 {[%emt 0:00:30]} Ndf6 {[%emt 0:00:30]} 16. Rc1 $146 {[%emt 0:00:30]} (16. Nf2 Bh6 17. Bxh6 Nxh6 18. Qd2 Nf7 19. cxd6 cxd6 20. Rac1 a6 21. Qd3 f4 22. Rc2 {1-0 Plachkinova,T (2149)-Danieli,E (2119) Genova op 6th 2002 (2)}) 16... Bh6 {[%emt 0:00:30]} 17. Qd2 {[%emt 0:00:00]} Bxe3+ {[%emt 0:00:00]} 18. Qxe3 {[%emt 0:01:00]} f4 {[%emt 0:01:00]} 19. Qf2 {[%emt 0:00:00]} Nh5 {[%emt 0:00:30]} (19... g5 $14) 20. cxd6 {[%emt 0:00:00]} cxd6 {[%emt 0:00:00]} 21. Nb5 {[%emt 0:01:30][%cal Bc3b5,Bb5a3,Ba3c4][%mdl 32]} Rf7 {[%emt 0:01:00] Dodges Nc7} 22. Rc2 {[%emt 0:00:00][%cal Of1c1,Bc1c2,Bc2c7,Bc7b7][%mdl 32] White has more active pieces.} (22. Nxa7 $5 g5 23. Nb5 $16) 22... a6 {[%emt 0:00:30]} 23. Na3 {[%emt 0:01:00]} Qg5 {[%emt 0:00:30]} (23... b5 $11 {keeps the balance.}) 24. Rfc1 $36 {[%emt 0:00:30][%mdl 2048] [#] White plays on the queen side and is better White is really pushing.} Rf6 $2 {[%emt 0:00:30][%mdl 8192] A mistake that costs the game.} (24... Qd8 $16 {is a better chance.}) 25. Rc7 $18 {[%emt 0:00:00]} Ng3 {[%emt 0:00:30]} 26. Rxb7 {[%emt 0:00:00][%cal Oc1c7]} ({Not} 26. hxg3 fxg3 27. Qb6 Raf8 $18) 26... Rff8 {[%emt 0:00:00]} 27. Rcc7 {[%emt 0:01:30][%csl Gb7][%cal Rc7h7]} Nf6 {[%emt 0:01:00]} 28. Nc4 {[%emt 0:00:30][%cal Oc4d6] [#] Nxd6! is the strong threat.} Rfd8 {[%emt 0:00:30]} 29. hxg3 {[%emt 0:00:00]} fxg3 {[%emt 0:00:00]} 30. Qe3 {[%emt 0:00:00]} Qh4 {[%emt 0:00:00]} 31. Ne1 {[%emt 0:00:00]} h5 {[%emt 0:00:00]} 32. Qh6+ {[%emt 0:02:00] Weighted Error Value: White=0.16 (very precise) /Black=1.10  Loses game:     	---       	Black=1      Mistake:       	---       	Black=2      Inaccurate:     	White=4     	Black=4      OK:         	White=5     	Black=6      Best:        	---       	Black=1} 1-0

[Event "8th Montevideo Open 2025"]
[Site "Montevideo"]
[Date "2025.02.06"]
[Round "6.14"]
[White "Volpe, Agustin"]
[Black "Manteiga, Franco"]
[Result "0-1"]
[Annotator "TA"]
[ECO "E11"]
[WhiteElo "1873"]
[BlackElo "2029"]
[PlyCount "92"]
[EventDate "2025.02.01"]
[EventType "swiss"]
[EventCountry "URU"]
[SourceTitle "playchess.com"]
[Source "ChessBase"]
[SourceQuality "1"]
[TimeControl "5400+30"]

{[%evp 12,92,26,18,61,-4,1,-10,31,3,0,-8,0,-20,-18,-16,-14,-7,-6,-4,0,-7,0,-17,-18,-22,-21,-24,-30,-32,-25,-28,-12,-14,-21,-21,-6,-6,-12,-18,0,-15,-16,-48,-34,-293,-290,-275,-276,-299,-333,-345,-342,-319,-333,-344,-345,-352,-337,-410,-376,-400,-341,-450,-424,-597,-581,-764,-755,-777,-781,-730,-742,-991,-989,-1795,-1686,-1965,-2013,-5398,-5294,-2765,-2268]} 1. d4 {[%emt 1:31:00]} Nf6 {[%emt 0:00:04]} 2. c4 {[%emt 0:00:30]} e6 {[%emt 1:31:26]} 3. Nf3 {[%emt 0:00:30]} Bb4+ {[%emt 0:00:30]} 4. Bd2 {[%emt 0:00:30]} Qe7 {[%emt 0:00:00]} 5. a3 {[%emt 0:00:00]} Bxd2+ 6. Qxd2 {[%emt 0:00:00]} d6 {[%emt 0:00:00]} 7. Nc3 {[%emt 0:00:00]} Nbd7 {[%emt 0:00:00] E11: Bogo-Indian.} 8. Nb5 $146 {[%emt 0:00:00]} (8. e4 $14) (8. e4 e5 9. d5 a5 10. Bd3 Nc5 11. Bc2 Bg4 12. Qe3 a4 13. O-O O-O 14. Ne1 Bd7 15. Nd3 {0-1 Hubbard,A (2109)-Filgueira,H (2283) Titled Tuesday intern op 02nd Apr Late blitz 2024 (8)}) 8... Nb6 $11 {[%emt 0:00:00]} 9. e3 {[%emt 0:00:00]} c6 {[%emt 0:00:00] The position is equal.} 10. Nc3 {[%emt 0:00:00]} (10. Nxd6+ $5 Qxd6 11. c5 $11) 10... e5 {[%emt 0:00:00]} 11. dxe5 {[%emt 0:00:00]} dxe5 {[%emt 0:00:00]} 12. Rd1 {[%emt 0:00:00][%cal Of3e5]} Bg4 {[%emt 0:00:00]} 13. h3 {[%emt 0:00:00]} Bxf3 {[%emt 0:00:00]} 14. gxf3 {[%emt 0:00:00]} O-O {[%emt 0:00:00]} 15. Qd6 {[%emt 0:00:00]} Qxd6 {[%emt 0:00:00]} 16. Rxd6 {[%emt 0:00:00]} Rad8 {[%emt 0:00:00]} 17. Rxd8 {[%emt 0:00:00]} Rxd8 {[%emt 0:00:00]} 18. Be2 {[%emt 0:00:00]} Kf8 {[%emt 0:00:00]} 19. Rg1 {[%emt 0:00:00]} g6 {[%emt 0:00:00]} 20. Rg5 {[%emt 0:00:00]} Nbd7 {[%emt 0:00:00]} 21. Kd2 {[%emt 0:00:00]} h6 {[%emt 0:00:00]} 22. Rg2 {[%emt 0:00:00]} Nc5+ {[%emt 0:00:00]} 23. Kc2 {[%emt 0:00:00]} Ne6 {[%emt 0:00:00]} 24. Rg1 {[%emt 0:00:00]} Ke7 {[%emt 0:00:00]} 25. b4 {[%emt 0:00:00]} Ne8 {[%emt 0:00:00]} 26. Rg2 {[%emt 0:00:00]} Nd6 {[%emt 0:00:00]} 27. Rg1 {[%emt 0:00:00]} Nf5 $36 {[%emt 0:00:00][%mdl 2048] White is under pressure.} 28. Ne4 $2 {[%emt 0:00:00][%mdl 8192] [#] This costs White the game.} (28. a4 $15) 28... Nfd4+ $1 $19 {[%emt 0:00:00][%mdl 512]} 29. exd4 {[%emt 0:00:00]} Nxd4+ {[%emt 0:00:00]} 30. Kb2 {[%emt 0:00:00]} Nxe2 {[%emt 0:00:00][%mdl 4096] Endgame KRN-KRN. Black is a pawn up.} 31. Re1 {[%emt 0:04:01]} Nf4 {[%emt 0:00:00]} 32. Kc2 {[%emt 0:00:30] Prevents Nd3} f5 {[%emt 0:00:00]} (32... Nxh3 33. Nc5 b6 (33... Nxf2 34. Nxb7 Rd3 35. Rxe5+ Kf6 36. Rc5 $19) 34. Nd3 $19) 33. Nc5 {[%emt 0:00:30]} b6 {[%emt 0:00:00]} ({Stronger than} 33... Nxh3 34. Rxe5+ Kf6 35. Re6+ Kf7 36. Nxb7 $15) 34. Nb3 {[%emt 0:00:30]} Kf6 {[%emt 0:00:00]} (34... Nxh3 35. Rxe5+ Kf6 36. Re3) 35. Nc1 {[%emt 0:00:30]} g5 {[%emt 0:00:00][%cal Oh6h5]} (35... Nxh3 36. Nd3 $19) 36. Rh1 {[%emt 0:00:30]} Ng6 {[%emt 0:16:30]} ({Don't do} 36... Rd4 37. c5 $19) 37. Ne2 {[%emt 0:08:35]} Nh4 {[%emt 0:00:00] Black is clearly winning.} 38. a4 {[%emt 0:01:54]} (38. f4 $142) 38... Nxf3 {[%emt 0:00:00] [#]} 39. Kc3 {[%emt 0:00:00]} Rd2 {[%emt 0:00:00]} 40. Nc1 {[%emt 0:00:00]} Rxf2 {[%emt 0:00:00]} 41. Nb3 {[%emt 0:00:26]} Rh2 {[%emt 0:00:00]} 42. Rd1 {[%emt 0:00:30]} Rxh3 {[%emt 0:00:00] Hoping for ...Nd4+.} 43. Rd7 {[%emt 0:00:30]} Nd4+ {[%emt 0:00:00]} 44. Kd2 {[%emt 0:00:30]} Nxb3+ {[%emt 0:00:00]} 45. Kc2 {[%emt 0:00:30]} Nd4+ {[%emt 0:00:00]} 46. Kd2 {[%emt 0:00:30]} g4 {[%emt 0:00:00] Weighted Error Value: White=0.70/Black=0.06 (flawless)   Loses game:     	White=1     	---        Mistake:       	White=2     	---        Inaccurate:     	White=4     	Black=1      OK:         	White=12    	Black=17     Best:        	White=3     	---} 0-1

[Event "8th Montevideo Open 2025"]
[Site "Montevideo"]
[Date "2025.02.06"]
[Round "6.15"]
[White "Miller, Ariel"]
[Black "Guerrero, Alvaro"]
[Result "1-0"]
[Annotator "NA RC"]
[ECO "B12"]
[WhiteElo "1835"]
[BlackElo "2028"]
[PlyCount "63"]
[EventDate "2025.02.01"]
[EventType "swiss"]
[EventCountry "URU"]
[SourceTitle "playchess.com"]
[Source "ChessBase"]
[SourceQuality "1"]
[TimeControl "5400+30"]

1. e4 {[%emt 0:00:02]} c6 {[%emt 0:18:40]} 2. d4 {[%emt 0:00:10]} d5 {[%emt 0:00:08]} 3. e5 {[%emt 0:00:01]} Bf5 {[%emt 0:00:06]} 4. g4 {[%emt 0:00:04]} Bd7 {[%emt 0:00:13]} 5. Be3 {[%emt 0:01:00]} h5 {[%emt 0:11:51]} 6. gxh5 {[%emt 0:00:30]} Nh6 {[%emt 0:00:30]} 7. Nd2 {[%emt 0:00:30]} Nf5 {[%emt 0:00:30]} 8. Qf3 {[%emt 0:00:30]} c5 {[%emt 0:00:30]} 9. Nb3 {[%emt 0:00:30]} Nxe3 {[%emt 0:00:30]} 10. fxe3 {[%emt 0:00:30]} e6 {[%emt 0:00:30]} 11. Be2 {[%emt 0:00:30]} Nc6 {[%emt 0:00:30]} 12. O-O-O {[%emt 0:00:30]} Rh6 {[%emt 0:00:30]} 13. Rf1 {[%emt 0:00:30]} f5 {[%emt 0:00:30]} 14. exf6 {[%emt 0:00:30]} Rxf6 {[%emt 0:00:30]} 15. Qg3 {[%emt 0:00:30]} cxd4 {[%emt 0:00:30]} 16. exd4 {[%emt 0:00:30]} Rxf1+ {[%emt 0:00:30]} 17. Bxf1 {[%emt 0:00:30]} Qf6 {[%emt 0:00:30]} 18. Qg6+ {[%emt 0:00:30]} Kd8 {[%emt 0:00:30]} 19. Qxf6+ {[%emt 0:00:30]} gxf6 {[%emt 0:00:30]} 20. Ne2 {[%emt 0:00:30]} Rc8 {[%emt 0:00:30]} 21. Rg1 {[%emt 0:00:30]} Be8 {[%emt 0:00:30]} 22. Rg8 {[%emt 0:00:30]} Ke7 {[%emt 0:00:30]} 23. Rh8 {[%emt 0:00:30]} Nd8 {[%emt 0:00:30]} 24. Nf4 {[%emt 0:00:30]} Kf7 {[%emt 0:00:30]} 25. h6 {[%emt 0:00:30]} Bd6 {[%emt 0:00:30]} 26. Nh5 {[%emt 0:00:30]} Ke7 {[%emt 0:00:30]} 27. h7 {[%emt 0:00:30]} Bd7 {[%emt 0:43:40]} 28. Re8+ {[%emt 1:02:43]} Bxe8 {[%emt 0:00:30]} 29. h8=Q {[%emt 0:00:30]} f5 {[%emt 0:00:30]} 30. Qf6+ {[%emt 0:00:30]} Kd7 {[%emt 0:00:30]} 31. Bb5+ {[%emt 0:00:30]} Nc6 {[%emt 0:00:30]} 32. Ng7 {[%emt 0:00:30]} 1-0

[Event "8th Montevideo Open 2025"]
[Site "Montevideo"]
[Date "2025.02.06"]
[Round "6.16"]
[White "Pichuaga, Juan Pablo"]
[Black "Errazola, Mauricio"]
[Result "1/2-1/2"]
[Annotator "NA RC"]
[ECO "E14"]
[WhiteElo "1973"]
[BlackElo "1891"]
[PlyCount "50"]
[EventDate "2025.02.01"]
[EventType "swiss"]
[EventCountry "URU"]
[SourceTitle "playchess.com"]
[Source "ChessBase"]
[SourceQuality "1"]
[TimeControl "5400+30"]

1. d4 {[%emt 0:12:39]} Nf6 {[%emt 0:00:29]} 2. c4 {[%emt 0:00:18]} e6 {[%emt 0:00:12]} 3. a3 {[%emt 0:01:05]} b6 {[%emt 0:04:31]} 4. Nc3 {[%emt 0:01:36]} Bb7 {[%emt 0:00:08]} 5. Nf3 {[%emt 0:01:37]} Be7 {[%emt 0:00:32]} 6. e3 {[%emt 0:00:15]} O-O {[%emt 0:00:10]} 7. Be2 {[%emt 0:00:24]} d5 {[%emt 0:00:30]} 8. cxd5 {[%emt 0:00:30]} Nxd5 {[%emt 0:00:30]} 9. Bd2 {[%emt 0:00:30]} Nd7 {[%emt 0:00:30]} 10. O-O {[%emt 0:00:30]} c5 {[%emt 0:00:30]} 11. Nxd5 {[%emt 0:00:30]} Bxd5 {[%emt 0:00:30]} 12. dxc5 {[%emt 0:00:30]} Nxc5 {[%emt 0:00:30]} 13. Bc3 {[%emt 1:16:36]} Bf6 14. Bxf6 {[%emt 0:00:00]} Qxf6 {[%emt 0:13:29]} 15. b4 {[%emt 0:00:00]} Ne4 {[%emt 0:02:24]} 16. Qd4 {[%emt 0:00:00]} Nc3 {[%emt 0:03:52]} 17. Rfe1 {[%emt 0:00:00]} Nxe2+ {[%emt 0:06:14]} 18. Rxe2 {[%emt 0:00:00]} Bxf3 {[%emt 0:00:13]} 19. Qxf6 {[%emt 0:00:00]} gxf6 {[%emt 0:00:05]} 20. gxf3 {[%emt 0:00:00]} Rac8 {[%emt 0:00:28]} 21. b5 {[%emt 0:00:00]} Rc5 {[%emt 0:00:46]} 22. Rb2 {[%emt 0:00:00]} Rfc8 {[%emt 0:00:44]} 23. f4 {[%emt 0:00:00]} Kf8 {[%emt 0:07:23]} 24. Raa2 {[%emt 0:00:00]} Ke7 {[%emt 0:01:44]} 25. Kg2 {[%emt 0:00:00]} f5 {[%emt 0:16:31]} 1/2-1/2

[Event "8th Montevideo Open 2025"]
[Site "Montevideo"]
[Date "2025.02.06"]
[Round "6.17"]
[White "Martello, Benjamin"]
[Black "Pena Canapa, Alfredo"]
[Result "1-0"]
[Annotator "NA RC"]
[ECO "A12"]
[WhiteElo "1968"]
[BlackElo "1862"]
[PlyCount "115"]
[EventDate "2025.02.01"]
[EventType "swiss"]
[EventCountry "URU"]
[SourceTitle "playchess.com"]
[Source "ChessBase"]
[SourceQuality "1"]
[TimeControl "5400+30"]

1. Nf3 {[%emt 0:00:02]} d5 {[%emt 0:00:14]} 2. b3 {[%emt 0:00:10]} Nf6 {[%emt 0:00:42]} 3. Bb2 {[%emt 0:00:07]} g6 {[%emt 0:00:21]} 4. c4 {[%emt 0:00:59]} c6 {[%emt 0:00:42]} 5. e3 {[%emt 0:02:46]} Bg7 {[%emt 0:00:11]} 6. Be2 {[%emt 0:00:11]} O-O {[%emt 0:00:14]} 7. O-O {[%emt 0:00:07]} a5 {[%emt 0:01:44]} 8. Nc3 {[%emt 0:05:49]} Re8 {[%emt 0:03:51]} 9. d4 {[%emt 0:01:16]} Bf5 {[%emt 0:03:59]} 10. Re1 {[%emt 0:04:35]} Nbd7 {[%emt 0:02:55]} 11. Nh4 {[%emt 0:01:47]} Be6 {[%emt 0:00:08]} 12. Qc2 {[%emt 0:03:34]} Nb6 {[%emt 0:03:40]} 13. c5 {[%emt 0:10:53]} Nbd7 {[%emt 0:04:39]} 14. Na4 {[%emt 0:09:45]} Bh6 {[%emt 0:03:19]} 15. Bd3 {[%emt 0:04:52]} Qc7 {[%emt 0:03:54]} 16. a3 {[%emt 0:14:20]} Nf8 {[%emt 0:06:27]} 17. Nb6 {[%emt 0:00:59]} Ra7 {[%emt 0:00:06]} 18. b4 {[%emt 0:02:39]} axb4 {[%emt 0:00:29]} 19. axb4 {[%emt 0:00:02]} Rxa1 {[%emt 0:00:08]} 20. Rxa1 {[%emt 0:00:44]} Rb8 {[%emt 0:01:55]} 21. Ra7 {[%emt 0:09:49]} N8d7 {[%emt 0:00:23]} 22. Na4 {[%emt 0:01:02]} Qd8 {[%emt 0:01:16]} 23. b5 {[%emt 0:00:40]} cxb5 {[%emt 0:10:25]} 24. Bxb5 {[%emt 0:00:31]} Ne4 {[%emt 0:00:15]} 25. Nc3 {[%emt 0:02:08]} f5 {[%emt 0:03:03]} 26. Nf3 {[%emt 0:02:03]} Bg7 {[%emt 0:00:23]} 27. Nd2 {[%emt 0:02:27]} Qc8 {[%emt 0:00:49]} 28. f3 {[%emt 0:00:58]} Nxc3 {[%emt 0:00:47]} 29. Bxc3 {[%emt 0:00:59]} Nxc5 {[%emt 0:02:41]} 30. Bb4 {[%emt 0:00:09]} Na6 {[%emt 0:11:03]} 31. Qxc8+ {[%emt 0:00:37]} Bxc8 {[%emt 0:00:56]} 32. Bxe7 {[%emt 0:00:51]} Bf8 {[%emt 0:00:11]} 33. Bf6 {[%emt 0:01:25]} Bd6 {[%emt 0:00:10]} 34. f4 {[%emt 0:01:47]} Nc7 {[%emt 0:00:35]} 35. Bd3 {[%emt 0:01:44]} Kf7 {[%emt 0:00:41]} 36. Bh4 {[%emt 0:01:14]} Ra8 {[%emt 0:01:04]} 37. Rxa8 {[%emt 0:00:05]} Nxa8 {[%emt 0:00:04]} 38. Nb1 {[%emt 0:00:42]} Bb4 {[%emt 0:00:51]} 39. Kf1 {[%emt 0:00:10]} Ke6 {[%emt 0:00:48]} 40. Be1 {[%emt 0:00:05]} Bxe1 {[%emt 0:00:22]} 41. Kxe1 {[%emt 0:00:02]} Bd7 {[%emt 0:00:17]} 42. Kd2 {[%emt 0:01:45]} Kd6 {[%emt 0:00:16]} 43. Kc3 {[%emt 0:00:12]} Kc7 {[%emt 0:00:39]} 44. Kb4 {[%emt 0:00:13]} Bc6 {[%emt 0:03:47]} 45. Nd2 {[%emt 0:02:15]} Bd7 {[%emt 0:02:33]} 46. Nf3 {[%emt 0:00:31]} b6 {[%emt 0:00:50]} 47. Ng5 {[%emt 0:00:50]} h5 {[%emt 0:00:30]} 48. Nf7 {[%emt 0:00:55]} Be8 {[%emt 0:00:18]} 49. Ne5 {[%emt 0:00:08]} Kb7 {[%emt 0:06:21]} 50. Bb5 {[%emt 0:00:25]} Bxb5 {[%emt 0:00:06]} 51. Kxb5 {[%emt 0:00:01]} Nc7+ {[%emt 0:00:09]} 52. Ka4 {[%emt 0:00:11]} Ka6 {[%emt 0:01:03]} 53. Nxg6 {[%emt 0:00:13]} b5+ {[%emt 0:00:10]} 54. Kb4 {[%emt 0:00:05]} Kb6 {[%emt 0:00:08]} 55. Ne7 {[%emt 0:00:26]} Na6+ {[%emt 0:01:35]} 56. Kb3 {[%emt 0:00:13]} Nc7 {[%emt 0:00:41]} 57. Nxf5 {[%emt 0:00:13]} Ka5 {[%emt 0:00:05]} 58. Ne7 {[%emt 0:00:32]} 1-0

[Event "8th Montevideo Open 2025"]
[Site "Montevideo"]
[Date "2025.02.06"]
[Round "6.18"]
[White "Varela, Mateo"]
[Black "Diaz Delograsi, Francisco"]
[Result "1-0"]
[Annotator "NA RC"]
[ECO "B90"]
[WhiteElo "1955"]
[BlackElo "1846"]
[PlyCount "33"]
[EventDate "2025.02.01"]
[EventType "swiss"]
[EventCountry "URU"]
[SourceTitle "playchess.com"]
[Source "ChessBase"]
[SourceQuality "1"]
[TimeControl "5400+30"]

1. e4 {[%emt 0:00:00]} c5 {[%emt 0:20:14]} 2. Nf3 {[%emt 0:00:00]} d6 {[%emt 0:00:30]} 3. d4 {[%emt 0:00:10]} cxd4 {[%emt 0:00:04]} 4. Nxd4 {[%emt 0:00:30]} Nf6 {[%emt 0:00:30]} 5. Nc3 {[%emt 0:00:30]} a6 {[%emt 1:11:42]} 6. Be3 {[%emt 1:32:20]} Ng4 {[%emt 0:00:30]} 7. Bg5 {[%emt 0:00:00]} h6 {[%emt 0:00:30]} 8. Bh4 g5 {[%emt 0:00:00]} 9. Bg3 {[%emt 0:00:00]} Bg7 {[%emt 0:00:00]} 10. Be2 {[%emt 0:00:00]} Ne5 {[%emt 0:01:30]} 11. Qd2 Nbc6 {[%emt 0:00:30]} 12. Nxc6 {[%emt 0:00:00]} bxc6 {[%emt 0:00:00]} 13. O-O {[%emt 0:00:00]} Be6 {[%emt 0:00:00]} 14. Rfd1 {[%emt 0:04:00]} Qa5 {[%emt 0:00:00]} 15. a3 {[%emt 0:00:00]} O-O {[%emt 0:00:00]} 16. Nd5 {[%emt 0:00:00]} Qd8 17. Nc3 {[%emt 0:00:00]} 1-0

[Event "8th Montevideo Open 2025"]
[Site "Montevideo"]
[Date "2025.02.06"]
[Round "6.19"]
[White "Delgado, Nazareno"]
[Black "Cayetano, Juan"]
[Result "0-1"]
[Annotator "NA RC"]
[ECO "C18"]
[WhiteElo "1819"]
[BlackElo "1940"]
[PlyCount "84"]
[EventDate "2025.02.01"]
[EventType "swiss"]
[EventCountry "URU"]
[SourceTitle "playchess.com"]
[Source "ChessBase"]
[SourceQuality "1"]
[TimeControl "5400+30"]

1. e4 {[%emt 0:00:56]} e6 {[%emt 0:00:05]} 2. d4 {[%emt 0:00:05]} d5 {[%emt 0:00:05]} 3. Nc3 {[%emt 0:00:02]} Bb4 {[%emt 0:00:13]} 4. e5 {[%emt 0:01:15]} c5 {[%emt 0:00:07]} 5. a3 {[%emt 0:00:02]} Ba5 {[%emt 0:00:33]} 6. b4 {[%emt 0:01:14]} cxd4 {[%emt 0:00:51]} 7. Nb5 {[%emt 0:02:01]} Bc7 {[%emt 0:00:58]} 8. Nf3 {[%emt 0:03:09]} Nc6 {[%emt 0:01:41]} 9. Nxc7+ {[%emt 0:02:26]} Qxc7 {[%emt 0:00:04]} 10. Bb5 {[%emt 0:00:15]} Bd7 {[%emt 0:01:08]} 11. Bxc6 {[%emt 0:00:19]} Qxc6 {[%emt 0:01:46]} 12. Bb2 {[%emt 0:02:11]} Rc8 {[%emt 0:02:04]} 13. Nxd4 {[%emt 0:02:13]} Qc4 {[%emt 0:03:02]} 14. Qd3 {[%emt 0:05:51]} Ne7 {[%emt 0:01:28]} 15. O-O {[%emt 0:01:41]} Nf5 {[%emt 0:02:29]} 16. Nxf5 {[%emt 0:01:29]} exf5 {[%emt 0:00:40]} 17. Qxc4 {[%emt 0:00:36]} Rxc4 {[%emt 0:00:26]} 18. c3 {[%emt 0:00:22]} Ke7 {[%emt 0:05:40]} 19. Rad1 {[%emt 0:02:10]} Ke6 {[%emt 0:04:44]} 20. Rfe1 {[%emt 0:05:12]} Rhc8 {[%emt 0:06:02]} 21. f3 {[%emt 0:07:38]} Ba4 {[%emt 0:00:50]} 22. Rd2 {[%emt 0:01:07]} g5 {[%emt 0:02:43]} 23. Kf2 {[%emt 0:02:01]} g4 {[%emt 0:02:41]} 24. Re3 {[%emt 0:02:49]} gxf3 {[%emt 0:02:16]} 25. Kxf3 {[%emt 0:00:33]} Rh4 {[%emt 0:01:17]} 26. g3 {[%emt 0:03:56]} Rh6 {[%emt 0:02:53]} 27. Rd4 {[%emt 0:01:34]} Rxh2 {[%emt 0:04:34]} 28. Bc1 {[%emt 0:02:29]} Bc2 {[%emt 0:01:43]} 29. Rd2 {[%emt 0:02:42]} Be4+ {[%emt 0:00:27]} 30. Kf4 {[%emt 0:00:13]} Rxd2 {[%emt 0:01:12]} 31. Bxd2 {[%emt 0:00:55]} Rg8 {[%emt 0:00:07]} 32. Rxe4 {[%emt 0:01:07]} dxe4 {[%emt 0:00:24]} 33. Be1 {[%emt 0:00:10]} Rg4+ {[%emt 0:00:11]} 34. Ke3 {[%emt 0:00:05]} Kd5 {[%emt 0:01:01]} 35. Bf2 {[%emt 0:00:49]} Kc4 {[%emt 0:00:19]} 36. Be1 {[%emt 0:00:10]} b5 {[%emt 0:00:42]} 37. Bf2 {[%emt 0:00:45]} Kxc3 {[%emt 0:00:17]} 38. Ke2 {[%emt 0:00:50]} Kb3 {[%emt 0:00:50]} 39. Bxa7 {[%emt 0:00:20]} Kxa3 {[%emt 0:00:17]} 40. Bc5 {[%emt 0:00:27]} Rxg3 {[%emt 0:00:13]} 41. Bd6 {[%emt 0:00:07]} Rf3 {[%emt 0:00:23]} 42. Bc5 {[%emt 0:01:05]} h5 {[%emt 0:00:10]} 0-1